bitfinex/quotes_BTCUSD_20220105
["timestamp","ask_amount","ask_price","bid_price","bid_amount"]
[1641369192374,0.00220117,46381.0,46380.0,0.38851417]
[1641369193427,0.00220117,46381.0,46380.0,0.03306017]
[1641369193629,0.00220117,46381.0,46380.0,6.017e-05]
[1641369193832,0.05050117,46381.0,46380.0,6.017e-05]
[1641369194030,1.08050117,46381.0,46380.0,6.017e-05]
[1641369194229,1.43595517,46381.0,46380.0,6.017e-05]
[1641369194432,1.44795517,46381.0,46380.0,6.017e-05]
[1641369195529,1.43595517,46381.0,46380.0,6.017e-05]
[1641369196376,1.44695517,46381.0,46380.0,6.017e-05]
[1641369197580,1.43595517,46381.0,46380.0,6.017e-05]
[1641369197976,0.40595517,46381.0,46380.0,6.017e-05]
[1641369198378,0.41695517,46381.0,46380.0,6.017e-05]
[1641369199579,0.40595517,46381.0,46380.0,6.017e-05]
[1641369200325,0.41695517,46381.0,46380.0,6.017e-05]
[1641369201330,0.57889154,46381.0,46380.0,6.017e-05]
[1641369201728,0.56789154,46381.0,46380.0,6.017e-05]
[1641369202329,0.57889154,46381.0,46380.0,6.017e-05]
[1641369203431,0.41695517,46381.0,46380.0,6.017e-05]
[1641369204274,0.40595517,46381.0,46380.0,6.017e-05]
[1641369204474,0.41695517,46381.0,46380.0,6.017e-05]
[1641369205675,0.40595517,46381.0,46380.0,6.017e-05]
[1641369206477,0.41795517,46381.0,46380.0,6.017e-05]
[1641369207523,0.40595517,46381.0,46380.0,6.017e-05]
[1641369208324,0.41795517,46381.0,46380.0,6.017e-05]
[1641369210326,0.45295517,46381.0,46380.0,6.017e-05]
[1641369211580,0.40595517,46381.0,46380.0,6.017e-05]
[1641369212380,0.45195517,46381.0,46380.0,6.017e-05]
[1641369213580,0.09650117,46381.0,46380.0,6.017e-05]
[1641369213780,0.05050117,46381.0,46380.0,6.017e-05]
[1641369214784,0.12450117,46381.0,46380.0,6.017e-05]
[1641369215631,0.05050117,46381.0,46380.0,6.017e-05]
[1641369216430,0.12450117,46381.0,46380.0,6.017e-05]
[1641369217635,0.05050117,46381.0,46380.0,6.017e-05]
[1641369218532,0.11250117,46381.0,46380.0,6.017e-05]
[1641369219581,0.05050117,46381.0,46380.0,6.017e-05]
[1641369220482,0.10350117,46381.0,46380.0,6.017e-05]
[1641369221683,0.05050117,46381.0,46380.0,6.017e-05]
[1641369222529,0.10650117,46381.0,46380.0,6.017e-05]
[1641369223732,0.05050117,46381.0,46380.0,6.017e-05]
[1641369224429,0.10650117,46381.0,46380.0,6.017e-05]
[1641369225732,0.05050117,46381.0,46380.0,6.017e-05]
[1641369226382,0.13950117,46381.0,46380.0,6.017e-05]
[1641369227683,0.05050117,46381.0,46380.0,6.017e-05]
[1641369228481,0.13950117,46381.0,46380.0,6.017e-05]
[1641369228686,0.09120117,46381.0,46380.0,6.017e-05]
[1641369229787,0.00220117,46381.0,46380.0,6.017e-05]
[1641369230439,0.07820117,46381.0,46380.0,6.017e-05]
[1641369232441,0.07420117,46381.0,46380.0,6.017e-05]
[1641369233803,0.00220117,46381.0,46380.0,6.017e-05]
[1641369234598,0.07420117,46381.0,46380.0,6.017e-05]
[1641369235699,0.00220117,46381.0,46380.0,6.017e-05]
[1641369236497,0.07920117,46381.0,46380.0,6.017e-05]
[1641369237830,0.00220117,46381.0,46380.0,6.017e-05]
[1641369238630,0.07420117,46381.0,46380.0,6.017e-05]
[1641369239833,0.00220117,46381.0,46380.0,6.017e-05]
[1641369240431,0.07420117,46381.0,46380.0,6.017e-05]
[1641369241879,0.00220117,46381.0,46380.0,6.017e-05]
[1641369242483,0.00220117,46381.0,46380.0,0.00606017]
[1641369242681,0.03720117,46381.0,46380.0,0.00606017]
[1641369243780,0.00220117,46381.0,46380.0,6.017e-05]
[1641369244281,0.00220117,46381.0,46380.0,0.22337152]
[1641369244480,0.01320117,46381.0,46380.0,0.23137152]
[1641369244881,0.01320117,46381.0,46380.0,0.28137152]
[1641369245328,0.01320117,46381.0,46380.0,0.05806017]
[1641369245628,0.01320117,46381.0,46380.0,0.00806017]
[1641369245828,0.00220117,46381.0,46380.0,0.22068387]
[1641369246032,0.00220117,46381.0,46380.0,0.27068387]
[1641369246636,0.00220117,46381.0,46380.0,0.28268387]
[1641369248431,0.00220117,46381.0,46380.0,0.27058387]
[1641369248631,0.00220117,46381.0,46380.0,0.28258387]
[1641369249877,0.00220117,46381.0,46380.0,0.27058387]
[1641369250575,0.00220117,46381.0,46380.0,0.28258387]
[1641369251775,0.00220117,46381.0,46380.0,0.27058387]
[1641369252623,0.00220117,46381.0,46380.0,0.06796017]
[1641369253024,0.00220117,46381.0,46380.0,0.01806017]
[1641369253629,0.00279598,46381.0,46380.0,0.01806017]
[1641369253824,0.00279598,46381.0,46380.0,6.017e-05]
[1641369254627,0.00279598,46381.0,46380.0,0.01206017]
[1641369255825,0.00279598,46381.0,46380.0,6.017e-05]
[1641369256776,0.00279598,46381.0,46380.0,0.34189897]
[1641369256976,0.00279598,46381.0,46380.0,0.74735297]
[1641369257180,0.00279598,46381.0,46380.0,0.52532117]
[1641369257779,0.00279598,46381.0,46380.0,0.51332117]
[1641369257982,0.00279598,46381.0,46380.0,0.73554416]
[1641369258581,0.00279598,46381.0,46380.0,0.74654416]
[1641369260427,0.00279598,46381.0,46380.0,0.73554416]
[1641369260626,0.00279598,46381.0,46380.0,0.74654416]
[1641369261927,0.00279598,46381.0,46380.0,0.73554416]
[1641369262529,0.00279598,46381.0,46380.0,0.74654416]
[1641369263329,0.00279598,46381.0,46380.0,0.74644416]
[1641369263775,0.00279598,46381.0,46380.0,0.73544416]
[1641369264676,0.00279598,46381.0,46380.0,0.74744416]
[1641369265877,0.00279598,46381.0,46380.0,0.73544416]
[1641369266677,0.00279598,46381.0,46380.0,0.74744416]
[1641369267750,0.00279598,46381.0,46380.0,0.73544416]
[1641369268544,0.00279598,46381.0,46380.0,0.74744416]
[1641369269744,0.00279598,46381.0,46380.0,0.73544416]
[1641369270746,0.00279598,46381.0,46380.0,0.74744416]
[1641369271776,0.00279598,46381.0,46380.0,0.73544416]
[1641369271977,0.00279598,46381.0,46380.0,0.83544416]
[1641369272179,0.00279598,46381.0,46380.0,1.23544416]
[1641369272680,0.00279598,46381.0,46380.0,1.24944416]
[1641369273878,0.00279598,46381.0,46380.0,1.23544416]
[1641369274178,0.00279598,46381.0,46380.0,0.83544416]
[1641369274578,0.00279598,46381.0,46380.0,0.84844416]
[1641369275029,0.00279598,46381.0,46380.0,1.20844416]
[1641369275831,0.00279598,46381.0,46380.0,1.19544416]
[1641369276732,0.00279598,46381.0,46380.0,1.20844416]
[1641369277835,0.00279598,46381.0,46380.0,1.19544416]
[1641369278033,0.00279598,46381.0,46380.0,0.83544416]
[1641369278632,0.00279598,46381.0,46380.0,0.84844416]
[1641369279885,0.00279598,46381.0,46380.0,0.83544416]
[1641369280085,0.00279598,46381.0,46380.0,1.81544416]
[1641369280689,0.00279598,46381.0,46380.0,1.82944416]
[1641369281986,0.00279598,46381.0,46380.0,1.81544416]
[1641369282828,0.00279598,46381.0,46380.0,1.82944416]
[1641369284031,0.00279598,46381.0,46380.0,1.81544416]
[1641369284632,0.00279598,46381.0,46380.0,0.84944416]
[1641369285034,0.00279598,46381.0,46380.0,1.45944416]
[1641369286036,0.00279598,46381.0,46380.0,1.44544416]
[1641369286678,0.00279598,46381.0,46380.0,1.46044416]
[1641369287979,0.00279598,46381.0,46380.0,1.44544416]
[1641369288284,0.00279598,46381.0,46380.0,1.22322117]
[1641369288680,0.00279598,46381.0,46380.0,1.23822117]
[1641369289483,0.00279598,46381.0,46380.0,0.62822117]
[1641369290032,0.00279598,46381.0,46380.0,1.61322117]
[1641369290736,0.00279598,46381.0,46380.0,1.62822117]
[1641369292035,0.00279598,46381.0,46380.0,1.61322117]
[1641369292435,0.00279598,46381.0,46380.0,0.61322117]
[1641369292838,0.00279598,46381.0,46380.0,1.18922117]
[1641369294076,0.00279598,46381.0,46380.0,1.17322117]
[1641369294276,0.00279598,46381.0,46380.0,1.07322117]
[1641369294677,0.00279598,46381.0,46380.0,1.07985056]
[1641369294879,0.00279598,46381.0,46380.0,1.09585056]
[1641369295278,0.00279598,46381.0,46380.0,0.53585056]
[1641369295783,0.00279598,46381.0,46380.0,0.52922117]
[1641369296085,0.00279598,46381.0,46380.0,0.51322117]
[1641369296680,0.00279598,46381.0,46380.0,0.53522117]
[1641369297730,0.00279598,46381.0,46380.0,0.17976717]
[1641369297930,0.00279598,46381.0,46380.0,0.15776717]
[1641369298130,4.428e-05,46381.0,46380.0,0.15776717]
[1641369298734,4.428e-05,46381.0,46380.0,0.18676717]
[1641369299930,0.00142009,46381.0,46380.0,0.18676717]
[1641369300130,0.00142009,46381.0,46380.0,0.15776717]
[1641369300730,0.00142009,46381.0,46380.0,0.21576717]
[1641369302184,0.00142009,46381.0,46380.0,0.15776717]
[1641369302788,0.00142009,46381.0,46380.0,0.21476717]
[1641369303386,0.00142009,46381.0,46380.0,0.10696017]
[1641369303789,0.00142009,46381.0,46380.0,0.05706017]
[1641369303988,0.00142009,46381.0,46380.0,6.017e-05]
[1641369304791,0.00242009,46381.0,46380.0,0.03806017]
[1641369305440,0.05072009,46381.0,46380.0,0.03806017]
[1641369306238,0.04972009,46381.0,46380.0,6.017e-05]
[1641369306837,0.05672009,46381.0,46380.0,0.02006017]
[1641369308037,0.04972009,46381.0,46380.0,6.017e-05]
[1641369308883,0.04972009,46381.0,46380.0,0.02006017]
[1641369309483,0.05031497,46381.0,46380.0,0.02006017]
[1641369309984,0.05031497,46381.0,46380.0,6.017e-05]
[1641369310785,0.05031497,46381.0,46380.0,0.02006017]
[1641369312632,0.05031497,46381.0,46380.0,6.017e-05]
[1641369312837,0.05031497,46381.0,46380.0,0.02006017]
[1641369314136,0.05031497,46381.0,46380.0,6.017e-05]
[1641369314735,0.05031497,46381.0,46380.0,0.02006017]
[1641369315937,0.05031497,46381.0,46380.0,6.017e-05]
[1641369316782,0.05031497,46381.0,46380.0,0.02506017]
[1641369318486,0.00201497,46381.0,46380.0,0.02506017]
[1641369318684,0.00201497,46381.0,46380.0,0.35551417]
[1641369318883,0.00201497,46381.0,46380.0,0.37951417]
[1641369320729,0.00201497,46381.0,46380.0,0.37851417]
[1641369322035,0.00201497,46381.0,46380.0,0.35551417]
[1641369322631,0.00201497,46381.0,46380.0,0.68551417]
[1641369322831,0.00201497,46381.0,46380.0,0.70251417]
[1641369323132,0.00201497,46381.0,46380.0,0.37251417]
[1641369324191,0.00201497,46381.0,46380.0,0.35551417]
[1641369324795,0.00201497,46381.0,46380.0,0.37351417]
[1641369325994,0.00201497,46381.0,46380.0,1.59041203]
[1641369326193,0.00201497,46381.0,46380.0,1.20618853]
[1641369326594,0.00201497,46381.0,46380.0,1.57241203]
[1641369326795,0.00201497,46381.0,46380.0,1.59041203]
[1641369327835,0.00201497,46381.0,46380.0,0.37351417]
[1641369328033,0.00201497,46381.0,46380.0,0.70506353]
[1641369328231,0.00201497,46381.0,46380.0,0.69754629]
[1641369328431,0.00201497,46381.0,46380.0,2.01754629]
[1641369328835,0.00201497,46381.0,46380.0,2.03254629]
[1641369329632,0.00201497,46381.0,46380.0,2.44659623]
[1641369330334,0.365791,46397.0,46381.0,1.32]
[1641369330535,0.365791,46397.0,46391.0,0.053889]
[1641369330833,0.365791,46397.0,46391.0,0.103889]
[1641369330834,0.064891,46397.0,46391.0,0.103889]
[1641369331034,0.064891,46397.0,46391.0,0.05]
[1641369331288,0.064891,46397.0,46390.0,0.157778]
[1641369332088,0.053891,46397.0,46394.0,0.05389]
[1641369332890,0.123891,46397.0,46394.0,0.10389]
[1641369333089,0.123891,46397.0,46391.0,0.27077928]
[1641369333592,0.123891,46397.0,46395.0,0.05389]
[1641369333791,0.123891,46397.0,46395.0,0.10389]
[1641369334191,0.053891,46397.0,46395.0,0.10389]
[1641369334591,0.64657,46399.0,46397.0,0.053889]
[1641369334791,0.64657,46399.0,46396.0,0.04849951]
[1641369334792,0.045,46397.0,46396.0,0.04849951]
[1641369335634,0.04618933,46397.0,46396.0,0.04849951]
[1641369336336,0.35664333,46397.0,46396.0,0.04849951]
[1641369336936,0.44064333,46397.0,46396.0,0.04849951]
[1641369337336,0.08518933,46397.0,46396.0,0.04849951]
[1641369338140,0.00118933,46397.0,46396.0,0.04849951]
[1641369338987,0.05618933,46397.0,46396.0,0.05549039]
[1641369339188,0.05618933,46397.0,46396.0,0.05489111]
[1641369339387,0.05618933,46397.0,46396.0,0.05551749]
[1641369339588,0.05618933,46397.0,46396.0,0.05446176]
[1641369340191,0.00118933,46397.0,46396.0,0.05446176]
[1641369340586,0.35664333,46397.0,46396.0,0.05446176]
[1641369341087,0.38764333,46397.0,46396.0,0.05646176]
[1641369341988,0.38764333,46397.0,46396.0,0.11035176]
[1641369342189,0.00118933,46397.0,46396.0,0.10835176]
[1641369342840,0.03918933,46397.0,46396.0,0.11535176]
[1641369344141,0.00118933,46397.0,46396.0,0.10835176]
[1641369344740,0.00118933,46397.0,46396.0,0.05446176]
[1641369344939,0.01318933,46397.0,46396.0,0.06346176]
[1641369346786,0.00118933,46397.0,46396.0,0.05446176]
[1641369346986,0.00618933,46397.0,46396.0,0.06446176]
[1641369348188,0.00118933,46397.0,46396.0,0.05446176]
[1641369348989,0.00618933,46397.0,46396.0,0.06446176]
[1641369350242,0.00618933,46397.0,46396.0,0.01]
[1641369350835,0.00518933,46397.0,46396.0,0.02]
[1641369352137,0.00118933,46397.0,46395.0,0.053892]
[1641369352936,0.00518933,46397.0,46395.0,0.070892]
[1641369353139,0.00518933,46397.0,46396.0,0.355454]
[1641369353338,0.00518933,46397.0,46396.0,0.405454]
[1641369354383,0.00518933,46397.0,46395.0,0.070892]
[1641369354584,0.00518933,46397.0,46396.0,0.355454]
[1641369354782,0.00118933,46397.0,46396.0,0.355454]
[1641369355585,0.00118933,46397.0,46396.0,0.405454]
[1641369355786,0.00118933,46397.0,46396.0,0.05]
[1641369355983,0.00118933,46397.0,46395.0,0.120892]
[1641369356983,0.00118933,46397.0,46395.0,0.137892]
[1641369358234,0.00118933,46397.0,46395.0,0.103892]
[1641369358438,0.00118933,46397.0,46395.0,0.053892]
[1641369359036,0.00118933,46397.0,46396.0,0.405454]
[1641369360942,0.00118933,46397.0,46396.0,0.425454]
[1641369361993,0.00118933,46397.0,46396.0,0.07]
[1641369362193,0.00118933,46397.0,46395.0,0.053892]
[1641369362993,0.00118933,46397.0,46395.0,0.075892]
[1641369364196,0.00118933,46397.0,46395.0,0.053892]
[1641369365035,0.00118933,46397.0,46395.0,0.075892]
[1641369367037,0.00118933,46397.0,46395.0,0.097892]
[1641369368240,0.00118933,46397.0,46395.0,0.053892]
[1641369368640,0.00118933,46397.0,46394.0,0.053893]
[1641369368890,0.05508333,46397.0,46395.0,0.059]
[1641369370288,0.05508333,46397.0,46394.0,0.107786]
[1641369370688,0.05508333,46397.0,46395.0,0.355454]
[1641369371090,0.05508333,46397.0,46395.0,0.405454]
[1641369371891,0.05508333,46397.0,46395.0,0.05]
[1641369372092,0.05508333,46397.0,46394.0,0.166893]
[1641369372293,0.00118933,46397.0,46395.0,0.36261316]
[1641369372539,0.00118933,46397.0,46396.0,2.14922433]
[1641369372736,0.00118933,46397.0,46396.0,2.19752433]
[1641369372938,0.01,46404.0,46402.0,0.00126013]
[1641369373139,0.01,46404.0,46403.0,1.675454]
[1641369373342,0.01,46404.0,46403.0,1.725454]
[1641369373538,0.01,46404.0,46403.0,1.825454]
[1641369374140,0.01,46404.0,46403.0,1.879325]
[1641369374338,0.01,46404.0,46403.0,3.26389046]
[1641369374937,0.01,46404.0,46403.0,3.27589046]
[1641369375137,0.01,46404.0,46403.0,2.42984744]
[1641369376140,0.01086424,46409.0,46406.0,0.053873]
[1641369376390,0.01086424,46409.0,46407.0,0.58034148]
[1641369376585,0.01086424,46409.0,46407.0,0.63034148]
[1641369376791,0.01086424,46409.0,46408.0,0.22125451]
[1641369377087,0.01086424,46409.0,46408.0,0.57670851]
[1641369378087,0.01086424,46409.0,46408.0,0.63058051]
[1641369378290,0.053873,46412.0,46408.0,0.63058051]
[1641369378588,0.053873,46412.0,46408.0,0.38287151]
[1641369378788,0.053873,46412.0,46408.0,0.32899951]
[1641369378989,0.053873,46412.0,46408.0,0.33999951]
[1641369379190,0.01237233,46414.0,46410.0,0.053872]
[1641369379590,0.01237233,46414.0,46410.0,0.103872]
[1641369379791,0.01237233,46414.0,46410.0,0.05]
[1641369380040,0.01237233,46414.0,46409.0,0.211616]
[1641369380241,0.00050821,46414.0,46409.0,0.211616]
[1641369381039,0.00050821,46414.0,46411.0,0.04848252]
[1641369381239,0.00050821,46414.0,46412.0,0.05387]
[1641369381441,0.00050821,46414.0,46412.0,0.10387]
[1641369382046,0.0483,46413.0,46409.0,0.01]
[1641369382243,0.0483,46413.0,46405.0,0.84581318]
[1641369382244,0.053884,46412.0,46405.0,0.84581318]
[1641369382442,0.04948892,46413.0,46404.0,0.84581318]
[1641369383039,0.05648892,46413.0,46404.0,0.85981318]
[1641369383243,0.85240941,46412.0,46404.0,0.014]
[1641369383441,0.053884,46409.0,46404.0,0.067884]
[1641369384092,0.053884,46409.0,46404.0,0.121766]
[1641369384292,0.053884,46409.0,46404.0,0.107766]
[1641369384492,0.053884,46409.0,46404.0,0.157766]
[1641369384696,0.053884,46408.0,46405.0,0.053882]
[1641369387640,0.00118908,46407.0,46405.0,0.053882]
[1641369388241,0.00118908,46407.0,46406.0,0.355454]
[1641369389043,0.00818908,46407.0,46406.0,0.368454]
[1641369390346,0.00118908,46407.0,46406.0,0.355454]
[1641369391147,0.00818908,46407.0,46406.0,0.368454]
[1641369391690,0.00818908,46407.0,46406.0,0.418454]
[1641369392293,0.00118908,46407.0,46406.0,0.405454]
[1641369393091,0.00818908,46407.0,46406.0,0.41851922]
[1641369394391,0.00118908,46407.0,46406.0,0.40551922]
[1641369395033,0.00818908,46407.0,46406.0,0.36951922]
[1641369396336,0.00118908,46407.0,46406.0,0.35551922]
[1641369396734,0.00118908,46407.0,46406.0,0.57481145]
[1641369396934,0.00118908,46407.0,46406.0,0.35551922]
[1641369397137,0.00418908,46407.0,46406.0,0.37251922]
[1641369398541,0.00418908,46407.0,46406.0,0.37210622]
[1641369398986,0.00418908,46407.0,46406.0,0.35510622]
[1641369398987,0.00118908,46407.0,46406.0,0.35510622]
[1641369399187,0.00618908,46407.0,46406.0,0.37110622]
[1641369400788,0.00618908,46407.0,46406.0,0.42110622]
[1641369400988,0.00118908,46407.0,46406.0,0.40510622]
[1641369401188,0.00618908,46407.0,46406.0,0.42210622]
[1641369402290,0.00618908,46407.0,46406.0,0.40510622]
[1641369402291,0.00118908,46407.0,46406.0,0.40510622]
[1641369403139,0.00618908,46407.0,46406.0,0.42210622]
[1641369404238,0.00118908,46407.0,46406.0,0.40510622]
[1641369405042,0.00118908,46407.0,46406.0,0.42210622]
[1641369406288,0.00118908,46407.0,46406.0,0.40510622]
[1641369407087,0.00118908,46407.0,46406.0,0.42210622]
[1641369408387,0.00118908,46407.0,46406.0,0.40510622]
[1641369409086,0.00118908,46407.0,46406.0,0.42210622]
[1641369410940,0.00118908,46407.0,46406.0,0.40510622]
[1641369411140,0.00118908,46407.0,46406.0,0.42210622]
[1641369411542,0.00118908,46407.0,46406.0,0.76210622]
[1641369412047,0.00118908,46407.0,46406.0,0.42210622]
[1641369412444,0.00118908,46407.0,46406.0,0.40510622]
[1641369413147,0.00118908,46407.0,46406.0,0.42410622]
[1641369414302,0.00118908,46407.0,46406.0,0.40510622]
[1641369414500,0.00118908,46407.0,46406.0,0.95510622]
[1641369415101,0.00118908,46407.0,46406.0,0.97510622]
[1641369416202,0.00118908,46407.0,46406.0,1.20213447]
[1641369416403,0.00118908,46407.0,46406.0,1.18213447]
[1641369416802,0.00118908,46407.0,46406.0,0.40510622]
[1641369417203,0.00118908,46407.0,46406.0,0.42710622]
[1641369417643,0.00118908,46407.0,46406.0,0.6477247]
[1641369418045,0.00118908,46407.0,46406.0,0.42710622]
[1641369418544,0.00118908,46407.0,46406.0,0.40510622]
[1641369419144,0.00118908,46407.0,46406.0,0.42210622]
[1641369419544,0.00118908,46407.0,46406.0,0.81210622]
[1641369420748,0.00118908,46407.0,46406.0,0.91210622]
[1641369420950,0.00118908,46407.0,46406.0,0.89510622]
[1641369421151,0.00118908,46407.0,46406.0,0.91310622]
[1641369421389,0.00118908,46407.0,46406.0,0.52310622]
[1641369421591,0.00118908,46407.0,46406.0,0.42310622]
[1641369422490,0.00118908,46407.0,46406.0,0.40510622]
[1641369423094,0.00118908,46407.0,46406.0,0.42310622]
[1641369423490,0.00118908,46407.0,46406.0,1.01310622]
[1641369423991,0.00118908,46407.0,46406.0,0.42310622]
[1641369424391,0.00118908,46407.0,46406.0,0.78510622]
[1641369425247,0.00118908,46407.0,46406.0,0.80310622]
[1641369426052,0.00118908,46407.0,46406.0,0.42310622]
[1641369426452,0.00118908,46407.0,46406.0,0.40510622]
[1641369427251,0.00118908,46407.0,46406.0,0.42210622]
[1641369428552,0.00118908,46407.0,46406.0,0.40510622]
[1641369429193,0.00118908,46407.0,46406.0,0.42210622]
[1641369430393,0.00118908,46407.0,46406.0,0.40510622]
[1641369431196,0.00118908,46407.0,46406.0,0.42210622]
[1641369432558,0.00118908,46407.0,46406.0,0.40510622]
[1641369433059,0.00118908,46407.0,46406.0,6.522e-05]
[1641369433261,0.00118908,46407.0,46406.0,0.01806522]
[1641369433462,0.25760606,46407.0,46406.0,0.01806522]
[1641369433760,0.30590606,46407.0,46406.0,0.01806522]
[1641369433958,0.55794019,46407.0,46406.0,0.01806522]
[1641369434158,0.91307219,46407.0,46406.0,0.01806522]
[1641369435260,0.92107219,46407.0,46406.0,0.03506522]
[1641369436491,0.91307219,46407.0,46406.0,6.522e-05]
[1641369436691,0.66103806,46407.0,46406.0,6.522e-05]
[1641369437295,0.66603806,46407.0,46406.0,0.01106522]
[1641369437794,0.31090606,46407.0,46406.0,0.01106522]
[1641369437994,0.05448908,46407.0,46406.0,0.01106522]
[1641369438295,0.00618908,46407.0,46406.0,0.01106522]
[1641369438496,0.00118908,46407.0,46406.0,6.522e-05]
[1641369439095,0.0015918,46407.0,46406.0,6.522e-05]
[1641369439396,0.0055918,46407.0,46406.0,0.01806522]
[1641369440042,0.0055918,46407.0,46406.0,0.37319722]
[1641369440442,0.0015918,46407.0,46406.0,0.35519722]
[1641369440844,0.0015918,46407.0,46406.0,0.46294522]
[1641369441250,0.0015918,46407.0,46406.0,0.48094522]
[1641369442545,0.0015918,46407.0,46406.0,0.46294522]
[1641369443145,0.0015918,46407.0,46406.0,0.48294522]
[1641369444589,0.0015918,46407.0,46406.0,0.46294522]
[1641369445191,0.0015918,46407.0,46406.0,0.48294522]
[1641369446490,0.0015918,46407.0,46406.0,0.46294522]
[1641369447093,0.00117787,46407.0,46406.0,0.46294522]
[1641369447294,0.00117787,46407.0,46406.0,0.48094522]
[1641369448538,0.00117787,46407.0,46406.0,0.46294522]
[1641369449339,0.00117787,46407.0,46406.0,0.48094522]
[1641369449938,0.00117787,46407.0,46406.0,0.70018644]
[1641369450945,0.00117787,46407.0,46406.0,0.87769644]
[1641369451142,0.00117787,46407.0,46406.0,2.20925257]
[1641369451394,0.00117787,46407.0,46406.0,2.22825257]
[1641369451597,0.00117787,46407.0,46406.0,2.60535897]
[1641369451796,7.787e-05,46407.0,46406.0,3.06875017]
[1641369452398,7.787e-05,46407.0,46406.0,3.04975017]
[1641369452997,7.787e-05,46407.0,46406.0,3.54975017]
[1641369453197,7.787e-05,46407.0,46406.0,3.57475017]
[1641369453599,7.787e-05,46407.0,46406.0,3.88075017]
[1641369454397,7.787e-05,46407.0,46406.0,3.85575017]
[1641369455241,7.787e-05,46407.0,46406.0,3.88275017]
[1641369456441,0.00050829,46414.0,46407.0,1.32]
[1641369456642,0.00050829,46414.0,46410.0,0.04847167]
[1641369456844,0.00050829,46414.0,46412.0,0.053858]
[1641369457042,0.00050829,46414.0,46413.0,1.91216581]
[1641369457443,0.00050829,46414.0,46413.0,2.01216581]
[1641369457643,0.00050829,46414.0,46413.0,2.56216581]
[1641369458042,0.00050829,46414.0,46413.0,2.61216581]
[1641369458892,0.00050829,46414.0,46413.0,2.56216581]
[1641369459291,0.00050829,46414.0,46413.0,2.58716581]
[1641369459693,0.00050829,46414.0,46413.0,2.63716581]
[1641369460293,0.00050829,46414.0,46413.0,2.63838508]
[1641369460493,0.00050829,46414.0,46413.0,2.61338508]
[1641369461295,0.00050829,46414.0,46413.0,2.63238508]
[1641369461494,0.00050829,46414.0,46413.0,4.2621043]
[1641369462107,0.00050829,46414.0,46413.0,4.36165269]
[1641369462548,0.00050829,46414.0,46413.0,2.73193347]
[1641369462947,0.00050829,46414.0,46413.0,2.86337373]
[1641369463246,0.0001,46416.0,46413.0,2.86337373]
[1641369463448,0.0001,46416.0,46415.0,0.355132]
[1641369463647,0.0001,46416.0,46415.0,1.20436918]
[1641369464847,0.00128885,46416.0,46415.0,1.20436918]
[1641369465249,0.00128885,46416.0,46415.0,0.989132]
[1641369465450,0.00128885,46416.0,46415.0,1.21132334]
[1641369465649,0.00128885,46416.0,46415.0,1.16132334]
[1641369467194,0.00128885,46416.0,46415.0,0.62732334]
[1641369467392,0.00128885,46416.0,46415.0,0.66632334]
[1641369468693,0.00128885,46416.0,46415.0,0.62732334]
[1641369468893,0.00128885,46416.0,46415.0,0.57732334]
[1641369469293,0.00128885,46416.0,46415.0,0.60932334]
[1641369470147,0.00128885,46416.0,46415.0,0.65932334]
[1641369470345,0.01255274,46419.0,46416.0,0.9]
[1641369470546,0.01255274,46419.0,46418.0,0.053863]
[1641369470744,0.01255274,46419.0,46418.0,0.408995]
[1641369470947,0.01255274,46419.0,46417.0,0.053863]
[1641369471147,0.01255274,46419.0,46414.0,0.95]
[1641369471347,0.01255274,46419.0,46418.0,0.041]
[1641369471546,0.36768474,46419.0,46418.0,0.041]
[1641369472350,0.35582085,46419.0,46418.0,0.041]
[1641369472545,0.35582085,46419.0,46411.0,0.51186377]
[1641369472746,0.00068885,46419.0,46411.0,0.51186377]
[1641369472947,0.053873,46417.0,46413.0,0.053873]
[1641369473795,0.0483,46416.0,46411.0,0.02686377]
[1641369473996,0.00068885,46419.0,46411.0,0.02686377]
[1641369473997,0.0483,46415.0,46411.0,0.02686377]
[1641369474198,0.0483,46414.0,46411.0,0.015]
[1641369474595,0.0483,46414.0,46406.0,0.5]
[1641369474795,0.25513958,46413.0,46407.0,0.05]
[1641369474998,0.0483,46412.0,46407.0,0.55]
[1641369475196,0.05388,46411.0,46407.0,0.5]
[1641369475396,0.05387996,46411.0,46408.0,0.103879]
[1641369475595,0.0483,46412.0,46408.0,0.103879]
[1641369476696,0.0483,46412.0,46409.0,0.053877]
[1641369476894,0.0483,46412.0,46409.0,0.103877]
[1641369477095,0.0483,46412.0,46409.0,0.053877]
[1641369477296,0.0553,46412.0,46409.0,0.066877]
[1641369477547,0.0553,46412.0,46410.0,6.142e-05]
[1641369477943,0.109175,46412.0,46410.0,6.142e-05]
[1641369478143,0.0553,46412.0,46410.0,6.142e-05]
[1641369478543,0.0483,46412.0,46410.0,6.142e-05]
[1641369479143,0.0483,46412.0,46410.0,0.05393442]
[1641369479343,0.0553,46412.0,46410.0,0.06693442]
[1641369479544,0.0553,46412.0,46411.0,0.405132]
[1641369479743,0.0553,46412.0,46411.0,0.355132]
[1641369479945,0.0553,46412.0,46410.0,0.06693442]
[1641369480546,0.0483,46412.0,46411.0,0.355132]
[1641369481394,0.0533,46412.0,46411.0,0.369132]
[1641369481794,0.005,46412.0,46411.0,0.689132]
[1641369482096,0.005,46412.0,46411.0,0.369132]
[1641369482697,0.00050827,46414.0,46412.0,0.053867]
[1641369482895,0.00050827,46414.0,46413.0,0.409]
[1641369483096,0.00068885,46419.0,46413.0,0.409]
[1641369483294,0.00068885,46419.0,46413.0,0.053868]
[1641369483494,0.004,46414.0,46413.0,0.053868]
[1641369483695,0.004,46414.0,46413.0,0.409]
[1641369485049,0.01255274,46419.0,46416.0,0.053865]
[1641369485453,0.01255274,46419.0,46416.0,0.107515]
[1641369486252,0.01255274,46419.0,46417.0,0.053865]
[1641369486253,0.00068885,46419.0,46417.0,0.053865]
[1641369486451,0.00068885,46419.0,46417.0,0.103865]
[1641369486850,0.00068885,46419.0,46418.0,0.355132]
[1641369487550,0.00768885,46419.0,46418.0,0.369132]
[1641369487951,0.00768885,46419.0,46418.0,0.419132]
[1641369489397,0.00268885,46419.0,46418.0,0.077]
[1641369489996,0.00268885,46419.0,46418.0,0.027]
[1641369490799,0.00187762,46419.0,46417.0,0.053866]
[1641369491400,0.00187762,46419.0,46417.0,0.071866]
[1641369492001,0.00187762,46419.0,46417.0,0.018]
[1641369492642,0.00187762,46419.0,46416.0,0.05387]
[1641369493543,0.00187762,46419.0,46416.0,0.07287]
[1641369494745,0.00187762,46419.0,46416.0,0.05387]
[1641369495544,0.00187762,46419.0,46416.0,0.07287]
[1641369495750,0.00187762,46419.0,46416.0,0.12287]
[1641369495946,0.00187762,46419.0,46417.0,0.68987818]
[1641369496145,0.00187762,46419.0,46418.0,0.23579608]
[1641369496396,0.00187762,46419.0,46418.0,0.355132]
[1641369496595,0.00187762,46419.0,46418.0,0.57571057]
[1641369496795,0.00187762,46419.0,46418.0,0.355132]
[1641369497498,0.00187762,46419.0,46418.0,0.376132]
[1641369498297,0.00187762,46419.0,46418.0,0.59471406]